bitfinex/quotes_SOLUSD_20230904
["timestamp","ask_amount","ask_price","bid_price","bid_amount"]
[1693844712444,56.569,19.446,19.436,59.815]
[1693844712651,8.023,19.443,19.436,75.373]
[1693844713651,8.023,19.443,19.436,59.815]
[1693844714051,33.944,19.443,19.436,59.815]
[1693844714640,8.023,19.443,19.436,59.815]
[1693844714853,8.023,19.444,19.436,75.373]
[1693844715055,0.7283316,19.443,19.436,75.373]
[1693844715457,8.94541606,19.444,19.436,75.373]
[1693844716349,8.023,19.444,19.436,75.373]
[1693844716551,0.84583497,19.443,19.436,75.373]
[1693844716850,8.86883497,19.443,19.436,75.373]
[1693844717156,8.023,19.443,19.436,75.373]
[1693844717457,8.022,19.445,19.436,75.373]
[1693844717650,0.92241606,19.444,19.436,75.373]
[1693844718160,0.92241606,19.445,19.436,75.373]
[1693844718748,20.92241606,19.449,19.436,75.373]
[1693844718960,8.021,19.447,19.436,101.29]
[1693844719161,0.92241606,19.446,19.436,101.29]
[1693844721262,0.92241606,19.448,19.436,101.29]
[1693844722266,8.021,19.447,19.436,101.29]
[1693844722447,0.92241606,19.446,19.436,101.29]
[1693844723346,8.94441606,19.446,19.436,101.29]
[1693844723857,0.92241606,19.446,19.436,101.29]
[1693844724246,8.021,19.448,19.436,46.29]
[1693844724580,91.42341606,19.447,19.436,20.373]
[1693844726359,91.42341606,19.447,19.437,55.0]
[1693844726559,91.42341606,19.447,19.438,4.815]
[1693844729763,91.42341606,19.447,19.439,55.0]
[1693844729961,91.42341606,19.447,19.44,4.814]
[1693844730567,34.86041606,19.447,19.44,4.814]
[1693844730763,0.92241606,19.447,19.44,20.369]
[1693844731073,8.94341606,19.447,19.441,55.0]
[1693844731264,8.94341606,19.447,19.438,15.556]
[1693844731465,91.42241606,19.447,19.439,59.815]
[1693844733169,91.42241606,19.447,19.439,4.815]
[1693844733663,91.42241606,19.447,19.429,102.48645341]
[1693844733869,91.42241606,19.447,19.434,4.816]
[1693844734173,91.42241606,19.447,19.435,55.0]
[1693844734359,91.42241606,19.447,19.435,59.816]
[1693844736872,91.42241606,19.447,19.431,12.968]
[1693844737060,55.0,19.446,19.427,59.816]
[1693844737370,192.896,19.441,19.428,4.014]
[1693844737556,20.92241606,19.44,19.428,4.014]
[1693844737756,8.026,19.437,19.428,16.984]
[1693844738450,33.955,19.437,19.428,16.984]
[1693844739656,8.026,19.437,19.428,16.984]
[1693844740470,8.026,19.437,19.431,16.982]
[1693844740858,8.025,19.438,19.431,16.982]
[1693844742063,33.953,19.438,19.431,16.982]
[1693844742260,33.953,19.438,19.431,4.014]
[1693844742467,33.953,19.438,19.425,4.015]
[1693844742774,0.85444916,19.437,19.426,4.015]
[1693844742971,8.027,19.434,19.426,16.987]
[1693844743277,33.96,19.434,19.426,16.987]
[1693844746871,136.357,19.434,19.424,4.015]
[1693844747093,33.96,19.434,19.426,4.015]
[1693844748279,8.027,19.434,19.426,45.299]
[1693844748475,8.027,19.434,19.427,55.0]
[1693844748675,25.931,19.436,19.429,16.984]
[1693844748875,8.026,19.435,19.429,16.984]
[1693844750375,96.8149,19.439,19.429,16.984]
[1693844750681,8.026,19.437,19.429,16.984]
[1693844751377,33.955,19.437,19.429,16.984]
[1693844751675,33.955,19.437,19.429,4.014]
[1693844753169,33.955,19.437,19.428,4.014]
[1693844754386,0.829303,19.436,19.428,4.014]
[1693844754685,33.961,19.434,19.428,4.014]
[1693844754872,33.961,19.434,19.427,12.971]
[1693844754873,90.562,19.434,19.424,28.315]
[1693844755080,90.562,19.434,19.425,55.0]
[1693844755682,90.562,19.434,19.428,4.014]
[1693844759869,90.562,19.434,19.424,28.315]
[1693844760088,90.562,19.434,19.425,4.015]
[1693844760679,90.562,19.434,19.424,4.015]
[1693844765079,0.6756562,19.433,19.424,4.015]
[1693844765283,33.966,19.431,19.424,4.015]
[1693844766500,25.936,19.433,19.424,71.988]
[1693844766790,100.5816,19.435,19.424,71.988]
[1693844767085,92.5556,19.435,19.424,71.988]
[1693844767487,56.575,19.444,19.424,71.988]
[1693844767785,170.2,19.45,19.43,96.498]
[1693844767786,20.92241606,19.442,19.43,96.498]
[1693844767994,20.92241606,19.442,19.434,16.979]
[1693844768171,28.94641606,19.442,19.434,16.979]
[1693844768498,54.86941606,19.442,19.434,4.013]
[1693844769793,54.86941606,19.442,19.434,16.979]
[1693844770389,28.94641606,19.442,19.434,16.979]
[1693844770591,28.94641606,19.442,19.434,45.279]
[1693844770782,8.024,19.442,19.434,45.279]
[1693844771187,25.921,19.444,19.434,45.279]
[1693844771391,0.92241606,19.443,19.434,45.279]
[1693844772593,8.023,19.442,19.434,45.279]
[1693844776493,33.946,19.442,19.434,16.979]
[1693844776991,8.023,19.442,19.434,16.979]
[1693844780395,8.023,19.442,19.425,113.5899942]
[1693844780396,33.956,19.437,19.429,4.014]
[1693844782480,33.956,19.437,19.428,55.0]
[1693844782481,33.956,19.437,19.425,12.972]
[1693844782682,0.88535449,19.436,19.42,28.32]
[1693844782996,192.985,19.432,19.419,4.016]
[1693844783500,20.0,19.431,19.419,16.992]
[1693844783795,8.029,19.428,19.419,16.992]
[1693844785104,102.379,19.438,19.419,16.992]
[1693844785398,8.027,19.435,19.424,96.526]
[1693844785600,8.027,19.435,19.428,16.984]
[1693844786601,8.026,19.436,19.428,16.984]
[1693844789005,33.957,19.436,19.428,16.984]
[1693844789188,33.957,19.436,19.424,28.314]
[1693844789395,33.957,19.436,19.425,55.0]
[1693844789792,33.957,19.436,19.425,71.987]
[1693844789999,33.957,19.436,19.425,16.987]
[1693844791899,33.957,19.436,19.425,4.015]
[1693844792296,33.957,19.436,19.424,4.015]
[1693844793003,33.957,19.436,19.423,59.015]
[1693844794019,33.957,19.436,19.417,12.977]
[1693844794020,34.04,19.43,19.417,12.977]
[1693844794195,90.598,19.427,19.417,4.016]
[1693844795291,90.598,19.427,19.417,59.016]
[1693844796815,90.598,19.427,19.417,71.994]
[1693844798302,33.974,19.427,19.417,71.994]
[1693844802200,33.974,19.427,19.417,16.994]
[1693844803401,33.974,19.427,19.418,55.0]
[1693844803600,33.974,19.427,19.42,4.016]
[1693844804500,90.596,19.427,19.419,4.016]
[1693844809319,90.596,19.427,19.418,59.016]
[1693844809515,90.596,19.427,19.418,4.016]
[1693844810020,90.596,19.427,19.417,55.0]
[1693844810402,90.596,19.427,19.417,59.017]
[1693844810710,90.596,19.427,19.413,25.7434149]
[1693844811019,90.596,19.427,19.413,16.997]
[1693844811917,90.596,19.427,19.414,55.0]
[1693844812221,90.596,19.427,19.417,4.017]
[1693844812726,90.596,19.427,19.416,4.017]
[1693844818434,90.596,19.427,19.415,4.017]
[1693844822017,90.596,19.427,19.415,16.996]
[1693844829223,90.596,19.427,19.415,4.017]
[1693844831126,90.645,19.417,19.4,34.11]
[1693844831322,90.645,19.417,19.404,4.019]
[1693844831525,90.645,19.417,19.404,17.006]
[1693844831741,93.4052,19.416,19.404,17.006]
[1693844831942,33.998,19.413,19.404,17.006]
[1693844833835,33.998,19.413,19.407,4.019]
[1693844834446,8.036,19.413,19.407,4.019]
[1693844834632,33.997,19.413,19.406,4.019]
[1693844835433,33.997,19.413,19.406,17.004]
[1693844835744,8.036,19.413,19.406,17.004]
[1693844836548,101.4392,19.416,19.406,17.004]
[1693844836751,93.4052,19.416,19.407,55.0]
[1693844837057,93.4052,19.416,19.409,45.337]
[1693844837238,8.034,19.418,19.41,55.0]
[1693844837549,8.034,19.418,19.412,16.999]
[1693844839534,8.033,19.419,19.412,16.999]
[1693844842651,33.986,19.419,19.412,16.999]
[1693844842849,56.642,19.421,19.412,16.999]
[1693844842850,8.032,19.421,19.412,16.999]
[1693844843049,8.031,19.424,19.413,55.0]
[1693844843350,8.031,19.423,19.416,16.995]
[1693844843739,8.031,19.423,19.416,4.017]
[1693844843953,33.979,19.423,19.416,4.017]
[1693844844354,33.979,19.423,19.413,55.0]
[1693844845555,33.979,19.423,19.413,71.997]
[1693844847353,8.031,19.423,19.413,71.997]
[1693844848750,33.979,19.423,19.413,71.997]
[1693844849356,33.979,19.423,19.413,59.017]
[1693844849552,33.979,19.423,19.413,4.017]
[1693844852172,33.979,19.423,19.413,16.997]
[1693844852353,33.979,19.423,19.414,55.0]
[1693844852554,33.979,19.423,19.416,4.017]
[1693844853544,8.031,19.423,19.416,4.017]
[1693844854563,8.031,19.423,19.415,4.017]
[1693844856462,33.979,19.423,19.415,4.017]
[1693844856769,8.031,19.423,19.415,4.017]
[1693844858962,8.031,19.423,19.415,16.996]
[1693844859763,8.031,19.423,19.415,4.017]
[1693844860166,33.979,19.423,19.415,4.017]
[1693844862968,90.612,19.423,19.414,55.0]
[1693844863163,90.612,19.423,19.413,59.017]
[1693844863370,90.612,19.423,19.413,55.0]
[1693844864672,90.612,19.423,19.414,4.017]
[1693844865174,8.031,19.423,19.414,16.997]
[1693844871075,33.979,19.423,19.414,4.017]
[1693844871475,33.979,19.423,19.414,16.997]
[1693844873375,8.031,19.423,19.414,16.997]
[1693844874668,8.031,19.424,19.414,16.997]
[1693844874868,8.031,19.424,19.415,55.0]
[1693844875185,8.031,19.424,19.417,4.016]
[1693844876971,33.978,19.424,19.416,4.017]
[1693844877172,33.978,19.424,19.415,55.0]
[1693844877471,33.978,19.424,19.415,4.017]
[1693844881282,90.608,19.424,19.414,59.017]
[1693844881886,90.608,19.424,19.415,55.0]
[1693844882086,90.608,19.424,19.414,4.017]
[1693844882584,33.978,19.424,19.414,4.017]
[1693844892186,33.978,19.424,19.414,16.997]
[1693844895101,33.978,19.424,19.414,4.017]
[1693844895290,33.983,19.421,19.411,41.314]
[1693844895491,90.622,19.421,19.412,4.018]
[1693844904112,8.032,19.421,19.412,16.999]
[1693844904519,25.947,19.424,19.412,16.999]
[1693844904722,33.979,19.423,19.413,55.0]
[1693844904897,33.979,19.423,19.415,4.017]
[1693844907110,33.979,19.423,19.414,4.017]
[1693844907704,90.612,19.423,19.412,4.018]
[1693844911601,90.612,19.423,19.411,4.018]
[1693844911997,90.612,19.423,19.411,17.0]
[1693844915207,90.612,19.423,19.411,45.334]
[1693844916300,8.031,19.423,19.412,55.0]
[1693844916499,33.979,19.423,19.415,4.017]
[1693844919522,33.979,19.423,19.415,16.996]
[1693844921719,8.031,19.423,19.415,16.996]
[1693844922097,97.6885,19.427,19.415,16.996]
[1693844922294,0.92241606,19.426,19.419,16.992]
[1693844922510,97.6885,19.427,19.421,45.31]
[1693844922701,0.92241606,19.426,19.421,16.991]
[1693844922901,0.92241606,19.426,19.421,4.016]
[1693844922902,8.95241606,19.426,19.421,4.016]
[1693844923102,8.03,19.426,19.421,4.016]
[1693844923514,33.974,19.426,19.415,28.327]
[1693844923916,33.974,19.426,19.416,55.0]
[1693844924214,33.974,19.426,19.418,4.016]
[1693844924413,33.974,19.426,19.418,59.016]
[1693844927114,33.974,19.426,19.418,71.993]
[1693844927416,8.03,19.427,19.418,71.993]
[1693844927616,0.92241606,19.426,19.418,71.993]
[1693844927920,8.95241606,19.426,19.418,71.993]
[1693844928119,8.03,19.426,19.418,71.993]
[1693844928518,8.029,19.428,19.418,71.993]
[1693844928721,0.92241606,19.427,19.418,71.993]
[1693844928920,0.92241606,19.428,19.418,71.993]
[1693844929517,0.92241606,19.426,19.418,71.993]
[1693844929718,8.95241606,19.426,19.418,71.993]
[1693844929907,8.03,19.426,19.418,71.993]
[1693844930319,8.03,19.427,19.418,71.993]
[1693844930519,0.92241606,19.426,19.418,71.993]
[1693844931018,8.95241606,19.427,19.418,71.993]
[1693844939813,0.92241606,19.427,19.42,34.11]
[1693844940015,0.92241606,19.433,19.422,45.308]
[1693844940315,0.92241606,19.443,19.427,96.509]
[1693844940522,0.92241606,19.443,19.429,1.80806393]
[1693844940726,90.3402,19.444,19.432,45.283]
[1693844940727,0.92241606,19.44,19.432,45.283]
[1693844940933,8.024,19.441,19.435,4.013]
[1693844941127,8.024,19.44,19.435,4.013]
[1693844941331,0.92241606,19.439,19.435,16.979]
[1693844941526,0.92241606,19.44,19.435,16.979]
[1693844943434,8.023,19.443,19.435,16.979]
[1693844943633,0.92241606,19.442,19.435,16.979]
[1693844946218,8.022,19.447,19.437,45.271]
[1693844946528,8.94341606,19.448,19.438,55.0]
[1693844946730,34.85841606,19.448,19.441,4.012]
[1693844946921,34.85841606,19.448,19.44,4.012]
[1693844947124,34.85841606,19.448,19.436,28.296]
[1693844947327,34.85841606,19.448,19.44,4.012]
[1693844947635,34.85841606,19.448,19.44,16.974]
[1693844948230,34.85841606,19.448,19.44,4.012]
[1693844955036,34.85841606,19.448,19.439,4.012]
[1693844955329,34.85841606,19.448,19.439,16.975]
[1693844956636,34.85841606,19.448,19.439,4.012]
[1693844959720,34.85841606,19.448,19.439,16.975]
[1693844960438,34.85841606,19.448,19.44,55.0]
[1693844960638,34.85841606,19.448,19.442,4.011]
[1693844963532,34.85841606,19.448,19.44,12.962]
[1693844963731,34.85841606,19.448,19.44,4.012]
[1693844970043,34.85841606,19.448,19.439,4.012]
[1693844970253,34.85841606,19.448,19.431,4.014]
[1693844970433,55.0,19.447,19.431,4.014]
[1693844970746,192.876,19.443,19.431,4.014]
[1693844970933,0.92241606,19.442,19.431,16.982]
[1693844971250,8.025,19.439,19.431,16.982]
[1693844971454,0.92241606,19.438,19.432,55.0]
[1693844971650,8.94741606,19.438,19.433,4.013]
[1693844971836,8.025,19.438,19.433,4.013]
[1693844972329,0.92241606,19.44,19.433,4.013]
[1693844972330,8.025,19.439,19.433,16.98]
[1693844973351,0.81921644,19.438,19.433,16.98]
[1693844973537,8.025,19.439,19.433,16.98]
[1693844976150,0.92241606,19.438,19.433,16.98]
[1693844976730,8.025,19.439,19.433,16.98]
[1693844978660,8.024,19.44,19.433,16.98]
[1693844978862,0.92241606,19.439,19.433,16.98]
[1693844979441,8.94641606,19.442,19.434,55.0]
[1693844979764,8.94641606,19.442,19.436,4.013]
[1693844979765,8.024,19.442,19.436,4.013]
[1693844979958,0.92241606,19.441,19.436,59.013]
[1693844980161,8.94641606,19.441,19.436,59.013]
[1693844980452,8.024,19.441,19.436,59.013]
[1693844983055,0.92241606,19.441,19.436,71.978]
[1693844983255,8.94541606,19.442,19.436,71.978]
[1693844985559,34.86841606,19.442,19.435,4.013]
[1693844986156,34.86841606,19.442,19.434,4.013]
[1693844989044,8.94541606,19.442,19.434,45.279]
[1693844989241,8.94541606,19.442,19.437,4.012]
[1693844989851,0.92241606,19.442,19.437,16.976]
[1693844990155,33.941,19.445,19.437,16.976]
[1693844990369,0.92241606,19.444,19.437,4.012]
[1693844990551,0.92241606,19.444,19.431,28.303]
[1693844990750,33.949,19.441,19.434,4.013]
[1693844990954,0.92241606,19.44,19.434,4.013]
[1693844991163,8.025,19.439,19.434,4.013]
[1693844992058,25.923,19.443,19.434,16.979]
[1693844992261,0.92241606,19.442,19.434,16.979]
[1693844992660,8.024,19.441,19.434,4.013]
[1693844992860,33.948,19.441,19.434,4.013]
[1693844993454,0.78428741,19.44,19.434,4.013]
[1693844993761,8.025,19.439,19.434,4.013]
[1693844994061,0.78428741,19.44,19.434,4.013]
[1693844994062,8.024,19.44,19.434,4.013]
[1693844995461,33.949,19.44,19.434,4.013]
[1693844995660,8.024,19.44,19.434,4.013]
[1693844996067,0.76988441,19.439,19.434,4.013]
[1693844996449,8.79488441,19.439,19.434,4.013]
[1693844996749,8.025,19.439,19.434,4.013]
[1693844999049,8.024,19.44,19.434,4.013]
[1693844999956,33.949,19.44,19.431,28.303]
[1693845000355,0.92241606,19.439,19.432,12.968]
[1693845000549,0.92241606,19.439,19.428,51.213]
[1693845000550,8.025,19.438,19.433,4.013]
[1693845002345,8.025,19.438,19.426,15.57407406]
[1693845002549,33.953,19.438,19.427,1.80806393]
[1693845002863,33.953,19.438,19.423,57.1741624]
[1693845002864,90.565,19.434,19.426,4.015]
[1693845003954,90.565,19.434,19.427,1.80806393]
[1693845005362,33.962,19.434,19.427,5.82206393]
[1693845005569,8.027,19.434,19.427,4.014]
[1693845005775,8.027,19.434,19.427,59.014]
[1693845006067,8.027,19.434,19.429,4.014]
[1693845006267,25.932,19.436,19.429,4.014]
[1693845006268,8.026,19.435,19.429,4.014]
[1693845007576,33.958,19.435,19.429,4.014]
[1693845009070,8.026,19.435,19.429,4.014]
[1693845011152,33.958,19.435,19.429,4.014]
[1693845012064,33.958,19.435,19.428,59.014]
[1693845012272,33.958,19.435,19.428,4.014]
[1693845013257,90.556,19.435,19.427,59.014]
[1693845013459,90.556,19.435,19.427,4.014]
[1693845013869,90.556,19.435,19.426,59.015]
[1693845014067,0.81439581,19.434,19.427,0.58251302]
[1693845014267,8.028,19.432,19.427,4.59651302]
[1693845014571,8.028,19.432,19.427,4.014]
[1693845016055,33.964,19.432,19.422,4.015]
[1693845016370,34.11,19.43,19.421,1.80806393]
[1693845016665,193.024,19.428,19.417,1.80806393]
[1693845016881,0.92241606,19.427,19.417,5.82506393]
[1693845017165,8.031,19.424,19.417,18.80306393]
[1693845019070,56.592,19.438,19.418,160.35141307]
[1693845019369,0.92241606,19.438,19.425,1.80806393]
[1693845019684,33.954,19.437,19.428,16.984]
[1693845019867,0.92241606,19.436,19.428,16.984]
[1693845020062,8.027,19.435,19.428,16.984]
[1693845020263,0.92241606,19.438,19.428,16.984]
[1693845020781,20.92241606,19.439,19.429,55.0]
[1693845021088,28.94741606,19.439,19.432,16.981]
[1693845021657,0.92241606,19.439,19.432,16.981]
[1693845021968,8.94641606,19.442,19.433,55.0]
[1693845022170,8.94641606,19.442,19.435,16.978]
[1693845022477,0.92241606,19.442,19.435,16.978]
[1693845022978,34.86841606,19.442,19.435,4.013]
[1693845023182,34.86841606,19.442,19.434,4.013]
[1693845026779,8.94541606,19.442,19.434,16.979]
[1693845026972,8.94541606,19.442,19.434,45.279]
[1693845028682,34.86841606,19.442,19.434,45.279]
[1693845028867,34.86841606,19.442,19.434,4.013]
[1693845029669,34.86841606,19.442,19.434,16.979]
[1693845030180,0.92241606,19.442,19.434,16.979]
[1693845030483,8.94341606,19.448,19.435,56.09504983]
[1693845030784,0.92241606,19.448,19.438,96.454]
[1693845030978,0.92241606,19.449,19.441,16.972]
[1693845031178,8.021,19.448,19.443,4.011]
[1693845031380,0.92241606,19.447,19.443,4.011]
[1693845031765,0.92241606,19.447,19.441,12.961]
[1693845031966,8.94441606,19.447,19.442,59.011]
[1693845032377,8.94441606,19.447,19.442,4.011]
[1693845032976,8.94441606,19.447,19.44,12.962]
[1693845033384,0.92241606,19.447,19.442,4.011]
[1693845033785,0.92241606,19.447,19.442,16.972]
[1693845034084,8.021,19.447,19.442,4.011]
[1693845034268,0.92241606,19.446,19.442,4.011]
[1693845034671,8.94441606,19.446,19.442,4.011]
[1693845035078,0.92241606,19.446,19.442,4.011]
[1693845035875,8.94441606,19.446,19.442,4.011]
[1693845036570,0.92241606,19.446,19.442,4.011]
[1693845036779,8.022,19.447,19.442,4.011]
[1693845036984,0.92241606,19.446,19.442,4.011]
[1693845039277,8.022,19.446,19.442,4.011]
[1693845039476,0.92241606,19.445,19.442,4.011]
[1693845041193,0.92241606,19.445,19.441,59.012]
[1693845041979,0.92241606,19.445,19.441,71.974]
[1693845042202,8.021,19.448,19.441,71.974]
[1693845042493,8.022,19.446,19.441,59.012]
[1693845042692,0.92241606,19.445,19.441,59.012]
[1693845042891,8.94441606,19.447,19.441,59.012]
[1693845043292,8.022,19.446,19.441,59.012]
[1693845043494,0.92241606,19.445,19.441,59.012]
[1693845044386,0.92241606,19.445,19.441,4.012]
[1693845044890,0.92241606,19.445,19.441,59.012]
[1693845047698,0.92241606,19.454,19.441,96.444]
[1693845047918,0.92241606,19.454,19.445,45.254]
[1693845048078,8.019,19.454,19.448,4.01]
[1693845048279,0.92241606,19.453,19.448,16.967]
[1693845048501,0.92241606,19.453,19.448,4.01]
[1693845048797,0.92241606,19.453,19.448,16.967]
[1693845049100,8.019,19.453,19.447,4.01]
[1693845049277,0.92241606,19.452,19.441,28.289]
[1693845049478,33.934,19.449,19.443,4.011]
[1693845049804,0.92241606,19.448,19.443,4.011]
[1693845049987,8.94341606,19.448,19.439,15.44290122]
[1693845050304,8.94341606,19.448,19.436,117.74139133]
[1693845050305,34.85841606,19.448,19.438,12.963]
[1693845050791,91.41941606,19.448,19.439,4.012]
[1693845051615,91.41941606,19.448,19.435,12.965]
[1693845051793,91.41941606,19.448,19.433,135.43215636]
[1693845051794,91.41941606,19.448,19.434,1.56384133]
[1693845051984,91.41941606,19.448,19.436,4.013]
[1693845052497,91.41941606,19.448,19.437,0.5597867]
[1693845052798,91.41941606,19.448,19.438,4.012]
[1693845054292,91.41941606,19.448,19.434,12.966]
[1693845054600,91.41941606,19.448,19.436,4.013]
[1693845056302,91.41941606,19.448,19.437,0.57869877]
[1693845056486,91.41941606,19.448,19.437,4.59069877]
[1693845056687,91.41941606,19.448,19.437,4.012]
[1693845056890,91.41941606,19.448,19.436,4.013]
[1693845057089,91.41941606,19.448,19.437,0.57688684]
[1693845058903,91.41941606,19.448,19.437,4.012]
[1693845060907,91.41941606,19.448,19.436,4.013]
[1693845062325,91.41941606,19.448,19.437,0.51161341]
[1693845062690,33.943,19.444,19.437,4.012]
[1693845062914,0.92241606,19.443,19.437,4.012]
[1693845063209,8.024,19.441,19.436,4.013]
[1693845064918,33.948,19.441,19.436,4.013]
[1693845065809,8.024,19.441,19.436,4.013]
[1693845067895,151.4499,19.446,19.436,71.978]
[1693845068107,8.023,19.444,19.437,0.79331793]
[1693845068304,8.023,19.444,19.439,4.012]
[1693845069207,33.943,19.444,19.439,4.012]
[1693845069902,8.023,19.444,19.439,4.012]
[1693845075710,33.943,19.444,19.435,12.965]
[1693845076414,33.943,19.444,19.438,4.012]
[1693845076709,90.515,19.444,19.433,28.301]
[1693845076912,90.515,19.444,19.436,4.012]
[1693845077111,90.515,19.444,19.434,12.966]
[1693845077304,90.515,19.444,19.435,0.75308971]
[1693845077504,0.92241606,19.443,19.434,12.966]
[1693845077706,8.024,19.441,19.436,4.013]
[1693845084419,33.948,19.441,19.431,12.968]
[1693845084619,33.948,19.441,19.433,4.013]
[1693845085017,25.923,19.443,19.433,16.98]
[1693845085221,0.92241606,19.442,19.433,16.98]
[1693845085612,8.024,19.441,19.433,16.98]
[1693845085812,8.024,19.441,19.434,55.75530189]
[1693845086019,8.024,19.441,19.436,4.013]
[1693845087540,33.948,19.441,19.435,4.013]
[1693845088229,8.024,19.441,19.435,4.013]
[1693845088913,33.948,19.441,19.435,4.013]
[1693845089430,33.948,19.441,19.431,28.304]
[1693845089628,90.529,19.441,19.432,56.78078792]
[1693845089815,90.529,19.441,19.432,60.79378792]
[1693845091119,90.529,19.441,19.432,5.79378792]
[1693845091323,0.66465509,19.44,19.432,4.013]
[1693845091632,90.529,19.441,19.432,4.013]
[1693845091633,33.953,19.438,19.432,4.013]
[1693845092229,33.953,19.438,19.426,172.41496863]
[1693845092429,90.543,19.438,19.427,1.80806393]
[1693845092635,0.92241606,19.437,19.427,4.014]
[1693845092825,33.96,19.434,19.427,4.014]
[1693845093330,56.592,19.438,19.427,45.296]
[1693845093530,0.92241606,19.437,19.427,45.296]
[1693845093728,33.959,19.435,19.427,45.296]
[1693845094120,33.959,19.435,19.428,0.65388236]
[1693845094323,33.959,19.435,19.429,4.014]
[1693845096024,33.959,19.435,19.427,12.971]
[1693845096230,33.959,19.435,19.428,5.22205516]
[1693845096439,33.959,19.435,19.427,4.014]
[1693845096628,33.959,19.435,19.428,0.52799068]
[1693845097332,33.959,19.435,19.428,4.014]
[1693845102643,33.959,19.435,19.428,16.984]
[1693845103436,33.959,19.435,19.428,4.014]
[1693845103949,33.959,19.435,19.429,0.54214557]
[1693845104142,33.959,19.435,19.429,4.55614557]
[1693845104345,33.959,19.435,19.429,4.014]
[1693845104541,33.959,19.435,19.428,4.014]
[1693845104742,33.959,19.435,19.429,0.71775135]
[1693845105241,33.959,19.435,19.429,4.014]
[1693845108757,33.959,19.435,19.428,4.014]
[1693845108932,33.959,19.435,19.429,0.52088911]
[1693845109133,33.959,19.435,19.427,4.014]
[1693845109452,33.959,19.435,19.428,0.59061172]
[1693845111036,33.959,19.435,19.426,5.59229851]
[1693845111239,33.959,19.435,19.426,4.015]
[1693845111557,33.959,19.435,19.427,1.57729851]
[1693845112645,33.959,19.435,19.421,1.80806393]
[1693845112646,0.72577774,19.434,19.421,1.80806393]
[1693845113051,33.967,19.431,19.424,4.015]
[1693845113254,33.967,19.431,19.425,1.80806393]
[1693845113640,33.967,19.431,19.425,5.82306393]
[1693845113939,33.967,19.431,19.425,4.015]
[1693845114547,33.967,19.431,19.423,1.80806393]
[1693845114736,33.967,19.431,19.423,5.82306393]
[1693845115435,33.967,19.431,19.423,18.79706393]
[1693845116052,8.028,19.431,19.423,18.79706393]
[1693845116237,25.931,19.436,19.424,55.0]